[Event "Titled Tuesday Blitz March 28 Early 2023"]
[White "Cori T., Deysi"]
[Black "Matinian, Nikita"]
[WhiteFideId "3801934"]
[BlackFideId "24129100"]
[WhiteElo "2292"]
[BlackElo "2422"]
[Result "1/2-1/2"]
[Round "07"]
[TimeControl "180+2"]
[Date "2023.03.28"]
[WhiteClock "0:00:15"]
[BlackClock "0:00:11"]

1. d4 {[%clk 0:03:00]}  Nf6 {[%clk 0:02:59]} 2. Nf3 {[%clk 0:03:00]}  g6 {[%clk 0:02:59]} 3. g3 {[%clk 0:03:01]}  Bg7 {[%clk 0:03:00]} 4. Bg2 {[%clk 0:03:01]}  O-O {[%clk 0:03:01]} 5. O-O {[%clk 0:03:02]}  d6 {[%clk 0:03:00]} 6. b3 {[%clk 0:03:02]}  a5 {[%clk 0:02:59]} 7. Bb2 {[%clk 0:03:02]}  a4 {[%clk 0:03:00]} 8. Qc1 {[%clk 0:02:57]}  Bf5 {[%clk 0:02:58]} 9. Rd1 {[%clk 0:02:55]}  Qc8 {[%clk 0:02:57]} 10. Nc3 {[%clk 0:02:54]}  axb3 {[%clk 0:02:50]} 11. axb3 {[%clk 0:02:55]}  Rxa1 {[%clk 0:02:49]} 12. Bxa1 {[%clk 0:02:56]}  Bh3 {[%clk 0:02:48]} 13. Bh1 {[%clk 0:02:56]}  Nc6 {[%clk 0:02:38]} 14. d5 {[%clk 0:02:55]}  Nd8 {[%clk 0:02:38]} 15. Nd4 {[%clk 0:02:38]}  c5 {[%clk 0:02:36]} 16. dxc6 {[%clk 0:02:37]}  bxc6 {[%clk 0:02:36]} 17. Qd2 {[%clk 0:02:29]}  c5 {[%clk 0:02:36]} 18. Ndb5 {[%clk 0:02:29]}  Ne6 {[%clk 0:02:34]} 19. Nd5 {[%clk 0:02:27]}  Nxd5 {[%clk 0:02:33]} 20. Bxg7 {[%clk 0:02:27]}  Nxg7 {[%clk 0:02:29]} 21. Bxd5 {[%clk 0:02:27]}  Bd7 {[%clk 0:02:19]} 22. c4 {[%clk 0:02:25]}  Qa6 {[%clk 0:02:11]} 23. Nc3 {[%clk 0:02:08]}  Nf5 {[%clk 0:02:11]} 24. e3 {[%clk 0:02:06]}  Rb8 {[%clk 0:02:09]} 25. Qc2 {[%clk 0:01:48]}  Qa3 {[%clk 0:02:07]} 26. Rb1 {[%clk 0:01:47]}  h5 {[%clk 0:02:06]} 27. h4 {[%clk 0:01:47]}  Kg7 {[%clk 0:01:53]} 28. Be4 {[%clk 0:01:46]}  Be6 {[%clk 0:01:28]} 29. Ne2 {[%clk 0:01:34]}  Nh6 {[%clk 0:01:09]} 30. Nf4 {[%clk 0:01:25]}  Bf5 {[%clk 0:01:09]} 31. Bxf5 {[%clk 0:01:25]}  Nxf5 {[%clk 0:01:09]} 32. Nxh5+ {[%clk 0:01:24]}  Kh7 {[%clk 0:01:09]} 33. Nf4 {[%clk 0:01:19]}  Qa8 {[%clk 0:01:09]} 34. Nd5 {[%clk 0:01:06]}  e6 {[%clk 0:00:55]} 35. Nf6+ {[%clk 0:01:06]}  Kg7 {[%clk 0:00:54]} 36. Qc3 {[%clk 0:01:01]}  e5 {[%clk 0:00:54]} 37. Nd5 {[%clk 0:01:00]}  Rh8 {[%clk 0:00:51]} 38. e4 {[%clk 0:00:53]}  Nd4 {[%clk 0:00:51]} 39. Qe3 {[%clk 0:00:53]}  Qd8 {[%clk 0:00:43]} 40. Ra1 {[%clk 0:00:51]}  Nc2 {[%clk 0:00:39]} 41. Qc3 {[%clk 0:00:46]}  Nxa1 {[%clk 0:00:39]} 42. Qxa1 {[%clk 0:00:47]}  g5 {[%clk 0:00:36]} 43. Ne3 {[%clk 0:00:28]}  gxh4 {[%clk 0:00:28]} 44. Nf5+ {[%clk 0:00:28]}  Kg6 {[%clk 0:00:27]} 45. gxh4 {[%clk 0:00:27]}  Rxh4 {[%clk 0:00:27]} 46. Nxh4+ {[%clk 0:00:25]}  Qxh4 {[%clk 0:00:28]} 47. Qd1 {[%clk 0:00:25]}  Qf6 {[%clk 0:00:22]} 48. Kf1 {[%clk 0:00:22]}  Qe6 {[%clk 0:00:21]} 49. Qf3 {[%clk 0:00:22]}  Qf6 {[%clk 0:00:17]} 50. Qg4+ {[%clk 0:00:20]}  Qg5 {[%clk 0:00:17]} 51. Qd1 {[%clk 0:00:19]}  Qf6 {[%clk 0:00:11]} 52. Ke2 {[%clk 0:00:19]}  Kg7 {[%clk 0:00:10]} 53. Qg1+ {[%clk 0:00:19]}  Kf8 {[%clk 0:00:11]} 54. Qh1 {[%clk 0:00:19]}  Ke7 {[%clk 0:00:11]} 55. Qa1 {[%clk 0:00:18]}  Qf4 {[%clk 0:00:10]} 56. f3 {[%clk 0:00:18]}  Qh2+ {[%clk 0:00:10]} 57. Ke3 {[%clk 0:00:18]}  Qc2 {[%clk 0:00:10]} 58. Qa7+ {[%clk 0:00:17]}  Ke6 {[%clk 0:00:10]} 59. Qb8 {[%clk 0:00:17]}  Qc1+ {[%clk 0:00:09]} 60. Ke2 {[%clk 0:00:17]}  Qc2+ {[%clk 0:00:09]} 61. Ke3 {[%clk 0:00:16]}  Qc3+ {[%clk 0:00:10]} 62. Ke2 {[%clk 0:00:17]}  Qd4 {[%clk 0:00:07]} 63. Qe8+ {[%clk 0:00:15]}  Kf6 {[%clk 0:00:07]} 64. Qh8+ {[%clk 0:00:15]}  Ke7 {[%clk 0:00:07]} 65. Qb8 {[%clk 0:00:15]}  Qb2+ {[%clk 0:00:07]} 66. Ke3 {[%clk 0:00:15]}  Qc1+ {[%clk 0:00:07]} 67. Ke2 {[%clk 0:00:16]}  Qc2+ {[%clk 0:00:08]} 68. Ke3 {[%clk 0:00:16]}  Qd1 {[%clk 0:00:08]} 69. Qc7+ {[%clk 0:00:15]}  Ke6 {[%clk 0:00:09]} 70. Qc8+ {[%clk 0:00:15]}  Kf6 {[%clk 0:00:09]} 71. Qd8+ {[%clk 0:00:16]}  Kg6 {[%clk 0:00:09]} 72. Qg8+ {[%clk 0:00:15]}  Kf6 {[%clk 0:00:09]} 73. Qd8+ {[%clk 0:00:15]}  Kg7 {[%clk 0:00:09]} 74. Qg5+ {[%clk 0:00:15]}  Kh7 {[%clk 0:00:09]} 75. Qh5+ {[%clk 0:00:14]}  Kg8 {[%clk 0:00:10]} 76. Qg5+ {[%clk 0:00:15]}  Kf8 {[%clk 0:00:10]} 77. Qd8+ {[%clk 0:00:15]}  Kg7 {[%clk 0:00:10]} 78. Qg5+ {[%clk 0:00:15]}  Kf8 {[%clk 0:00:11]} 79. Qd8+ {[%clk 0:00:15]}  Kg7 {[%clk 0:00:11]} 1/2-1/2


[Site "https://www.chess.com"]

[Event "Titled Tuesday Blitz March 28 Early 2023"]
[White "Lewtak, Damian"]
[Black "Shapiro, Viktor"]
[WhiteFideId "1141724"]
[BlackFideId "4175700"]
[WhiteElo "2302"]
[BlackElo "2152"]
[Result "1-0"]
[Round "07"]
[TimeControl "180+2"]
[Date "2023.03.28"]
[WhiteClock "0:00:20"]
[BlackClock "0:00:12"]

1. e4 {[%clk 0:03:00]}  c5 {[%clk 0:02:59]} 2. Nf3 {[%clk 0:03:00]}  d6 {[%clk 0:02:57]} 3. Bb5+ {[%clk 0:02:59]}  Nd7 {[%clk 0:02:56]} 4. O-O {[%clk 0:02:59]}  a6 {[%clk 0:02:53]} 5. Bd3 {[%clk 0:02:59]}  g6 {[%clk 0:02:51]} 6. Re1 {[%clk 0:02:58]}  Bg7 {[%clk 0:02:51]} 7. c3 {[%clk 0:02:57]}  Ngf6 {[%clk 0:02:46]} 8. Bc2 {[%clk 0:02:57]}  O-O {[%clk 0:02:46]} 9. d4 {[%clk 0:02:56]}  e5 {[%clk 0:02:46]} 10. Nbd2 {[%clk 0:02:53]}  cxd4 {[%clk 0:02:40]} 11. cxd4 {[%clk 0:02:53]}  b5 {[%clk 0:02:40]} 12. a4 {[%clk 0:02:52]}  Bb7 {[%clk 0:02:39]} 13. d5 {[%clk 0:02:52]}  Nc5 {[%clk 0:02:26]} 14. b4 {[%clk 0:02:48]}  Nxa4 {[%clk 0:02:25]} 15. Bxa4 {[%clk 0:02:49]}  bxa4 {[%clk 0:02:25]} 16. Rxa4 {[%clk 0:02:37]}  Qd7 {[%clk 0:02:24]} 17. Ra1 {[%clk 0:02:30]}  Rfc8 {[%clk 0:02:23]} 18. Nb3 {[%clk 0:02:29]}  Qb5 {[%clk 0:02:20]} 19. Na5 {[%clk 0:02:25]}  Rc7 {[%clk 0:02:06]} 20. Bd2 {[%clk 0:02:17]}  h6 {[%clk 0:02:01]} 21. Qb3 {[%clk 0:02:08]}  Rac8 {[%clk 0:02:00]} 22. Qa4 {[%clk 0:02:00]}  Ba8 {[%clk 0:01:50]} 23. h3 {[%clk 0:01:41]}  Rc2 {[%clk 0:01:41]} 24. Qb3 {[%clk 0:01:27]}  Bf8 {[%clk 0:01:35]} 25. Nc6 {[%clk 0:01:21]}  Qc4 {[%clk 0:01:17]} 26. Qxc4 {[%clk 0:01:10]}  Rxc4 {[%clk 0:01:17]} 27. Rxa6 {[%clk 0:01:05]}  Nxe4 {[%clk 0:01:16]} 28. b5 {[%clk 0:01:01]}  f5 {[%clk 0:01:11]} 29. Rea1 {[%clk 0:00:51]}  Bb7 {[%clk 0:00:59]} 30. Rb6 {[%clk 0:00:42]}  Rc7 {[%clk 0:00:44]} 31. Ra7 {[%clk 0:00:41]}  Nc5 {[%clk 0:00:38]} 32. Be3 {[%clk 0:00:34]}  Bxc6 {[%clk 0:00:34]} 33. Rxc7 {[%clk 0:00:31]}  Bxd5 {[%clk 0:00:33]} 34. Bxc5 {[%clk 0:00:30]}  dxc5 {[%clk 0:00:34]} 35. Rb8 {[%clk 0:00:22]}  Rc1+ {[%clk 0:00:26]} 36. Kh2 {[%clk 0:00:22]}  Be6 {[%clk 0:00:26]} 37. Nxe5 {[%clk 0:00:21]}  c4 {[%clk 0:00:12]} 38. Nxg6 {[%clk 0:00:20]} 1-0


[Site "https://www.chess.com"]

[Event "Titled Tuesday Blitz March 28 Early 2023"]
[White "Thecourseoisildur"]
[Black "Perez Gormaz, Matias"]
[BlackFideId "3406342"]
[WhiteElo "2458"]
[BlackElo "2362"]
[Result "0-1"]
[Round "07"]
[TimeControl "180+2"]
[Date "2023.03.28"]
[WhiteClock "0:00:02"]
[BlackClock "0:00:13"]

1. e4 {[%clk 0:03:00]}  c5 {[%clk 0:02:59]} 2. Nf3 {[%clk 0:03:00]}  e6 {[%clk 0:03:00]} 3. d4 {[%clk 0:03:01]}  cxd4 {[%clk 0:03:01]} 4. Nxd4 {[%clk 0:03:01]}  a6 {[%clk 0:03:01]} 5. Be2 {[%clk 0:03:01]}  Nf6 {[%clk 0:02:59]} 6. Nc3 {[%clk 0:03:01]}  Qc7 {[%clk 0:02:58]} 7. O-O {[%clk 0:03:00]}  d6 {[%clk 0:02:59]} 8. Be3 {[%clk 0:03:00]}  b5 {[%clk 0:02:57]} 9. a3 {[%clk 0:02:51]}  Bb7 {[%clk 0:02:57]} 10. Bf3 {[%clk 0:02:45]}  Nbd7 {[%clk 0:02:57]} 11. Nb3 {[%clk 0:02:36]}  Ne5 {[%clk 0:02:55]} 12. Bd4 {[%clk 0:02:26]}  Be7 {[%clk 0:02:51]} 13. Bxe5 {[%clk 0:02:05]}  dxe5 {[%clk 0:02:52]} 14. g3 {[%clk 0:02:00]}  O-O {[%clk 0:02:50]} 15. Bg2 {[%clk 0:02:00]}  Qb6 {[%clk 0:02:40]} 16. Qe2 {[%clk 0:01:58]}  Rac8 {[%clk 0:02:26]} 17. Nc1 {[%clk 0:01:48]}  Rc7 {[%clk 0:02:12]} 18. Nd3 {[%clk 0:01:46]}  Nd7 {[%clk 0:02:04]} 19. Kh1 {[%clk 0:01:42]}  a5 {[%clk 0:01:58]} 20. f4 {[%clk 0:01:41]}  exf4 {[%clk 0:01:36]} 21. gxf4 {[%clk 0:01:41]}  b4 {[%clk 0:01:36]} 22. axb4 {[%clk 0:01:41]}  axb4 {[%clk 0:01:37]} 23. Nd1 {[%clk 0:01:34]}  Rfc8 {[%clk 0:01:31]} 24. Ne3 {[%clk 0:01:31]}  Ba6 {[%clk 0:01:29]} 25. e5 {[%clk 0:01:21]}  Nc5 {[%clk 0:01:19]} 26. f5 {[%clk 0:00:51]}  b3 {[%clk 0:01:18]} 27. f6 {[%clk 0:00:47]}  Bf8 {[%clk 0:01:18]} 28. fxg7 {[%clk 0:00:39]}  Bxg7 {[%clk 0:01:19]} 29. Ng4 {[%clk 0:00:28]}  bxc2 {[%clk 0:00:47]} 30. Nf6+ {[%clk 0:00:26]}  Bxf6 {[%clk 0:00:42]} 31. exf6 {[%clk 0:00:26]}  Bxd3 {[%clk 0:00:40]} 32. Qe3 {[%clk 0:00:14]}  Qd6 {[%clk 0:00:27]} 33. b4 {[%clk 0:00:10]}  Nd7 {[%clk 0:00:20]} 34. Ra6 {[%clk 0:00:05]}  Qf8 {[%clk 0:00:11]} 35. Qxd3 {[%clk 0:00:02]}  c1=Q {[%clk 0:00:11]} 36. Qg3+ {[%clk 0:00:02]}  Kh8 {[%clk 0:00:11]} 37. Rxc1 {[%clk 0:00:01]}  Rxc1+ {[%clk 0:00:12]} 38. Bf1 {[%clk 0:00:01]}  Rxf1+ {[%clk 0:00:13]} 39. Kg2 {[%clk 0:00:02]}  Rxf6 {[%clk 0:00:13]} 40. Ra7 {[%clk 0:00:02]}  Rg6 {[%clk 0:00:13]} 0-1


[Site "https://www.chess.com"]

[Event "Titled Tuesday Blitz March 28 Early 2023"]
[White "Melaugh, Shane"]
[Black "Al-Tarboush, Ward"]
[WhiteFideId "2509580"]
[BlackFideId "7601450"]
[WhiteElo "2034"]
[BlackElo "2257"]
[Result "1-0"]
[Round "07"]
[TimeControl "180+2"]
[Date "2023.03.28"]
[WhiteClock "0:00:08"]
[BlackClock "0:00:02"]

1. c4 {[%clk 0:03:00]}  Nf6 {[%clk 0:02:56]} 2. Nc3 {[%clk 0:03:01]}  c5 {[%clk 0:02:52]} 3. g3 {[%clk 0:03:00]}  Nc6 {[%clk 0:02:51]} 4. Bg2 {[%clk 0:03:00]}  e5 {[%clk 0:02:49]} 5. e4 {[%clk 0:03:00]}  Nd4 {[%clk 0:02:49]} 6. Nge2 {[%clk 0:02:59]}  d6 {[%clk 0:02:49]} 7. O-O {[%clk 0:02:53]}  Be7 {[%clk 0:02:49]} 8. d3 {[%clk 0:02:52]}  O-O {[%clk 0:02:45]} 9. a3 {[%clk 0:02:52]}  Bg4 {[%clk 0:02:38]} 10. f3 {[%clk 0:02:52]}  Bh5 {[%clk 0:02:38]} 11. h3 {[%clk 0:02:52]}  Qd7 {[%clk 0:02:35]} 12. Kh2 {[%clk 0:02:39]}  a6 {[%clk 0:02:30]} 13. b4 {[%clk 0:02:39]}  b5 {[%clk 0:02:29]} 14. Nxd4 {[%clk 0:02:33]}  cxd4 {[%clk 0:02:27]} 15. Nd5 {[%clk 0:02:26]}  Nxd5 {[%clk 0:02:28]} 16. cxd5 {[%clk 0:02:19]}  f5 {[%clk 0:02:28]} 17. exf5 {[%clk 0:02:17]}  Bf7 {[%clk 0:02:26]} 18. g4 {[%clk 0:02:17]}  Bxd5 {[%clk 0:02:26]} 19. f4 {[%clk 0:02:13]}  Bxg2 {[%clk 0:02:22]} 20. Kxg2 {[%clk 0:02:14]}  Qc6+ {[%clk 0:02:18]} 21. Qf3 {[%clk 0:02:14]}  Qc2+ {[%clk 0:02:17]} 22. Rf2 {[%clk 0:02:12]}  Qb3 {[%clk 0:02:16]} 23. fxe5 {[%clk 0:02:07]}  dxe5 {[%clk 0:02:15]} 24. Bb2 {[%clk 0:01:55]}  Rac8 {[%clk 0:02:13]} 25. Re1 {[%clk 0:01:55]}  Bd6 {[%clk 0:02:08]} 26. Ree2 {[%clk 0:01:50]}  Rc7 {[%clk 0:02:03]} 27. Qe4 {[%clk 0:01:44]}  Rcf7 {[%clk 0:01:49]} 28. Bc1 {[%clk 0:01:39]}  Qd1 {[%clk 0:01:39]} 29. Rf1 {[%clk 0:01:19]}  Qb3 {[%clk 0:01:37]} 30. Rff2 {[%clk 0:01:17]}  h6 {[%clk 0:01:33]} 31. h4 {[%clk 0:01:03]}  Bb8 {[%clk 0:01:08]} 32. g5 {[%clk 0:00:58]}  Qd1 {[%clk 0:00:57]} 33. Rf1 {[%clk 0:00:55]}  Qb3 {[%clk 0:00:51]} 34. gxh6 {[%clk 0:00:54]}  gxh6 {[%clk 0:00:51]} 35. Bxh6 {[%clk 0:00:54]}  Re8 {[%clk 0:00:46]} 36. f6 {[%clk 0:00:52]}  Qe6 {[%clk 0:00:24]} 37. Qg6+ {[%clk 0:00:48]}  Kh8 {[%clk 0:00:24]} 38. Bg7+ {[%clk 0:00:35]}  Kg8 {[%clk 0:00:25]} 39. Re4 {[%clk 0:00:24]}  Rc8 {[%clk 0:00:21]} 40. Rf2 {[%clk 0:00:24]}  Rc3 {[%clk 0:00:15]} 41. Qh6 {[%clk 0:00:21]}  Rxf6 {[%clk 0:00:08]} 42. Rxf6 {[%clk 0:00:18]}  Rc2+ {[%clk 0:00:08]} 43. Kg3 {[%clk 0:00:11]}  Qxf6 {[%clk 0:00:04]} 44. Qxf6 {[%clk 0:00:10]}  Rc8 {[%clk 0:00:02]} 45. Bh6 {[%clk 0:00:10]}  Rc7 {[%clk 0:00:02]} 46. Rg4+ {[%clk 0:00:09]}  Kh7 {[%clk 0:00:02]} 47. Rg7+ {[%clk 0:00:08]}  Kh8 {[%clk 0:00:02]} 48. Qf8# {[%clk 0:00:08]} 1-0


[Site "https://www.chess.com"]

[Event "Titled Tuesday Blitz March 28 Early 2023"]
[White "Gontcharov, Vladislav"]
[Black "Titichoca Daza, Daniel"]
[WhiteFideId "4123492"]
[BlackFideId "3309550"]
[WhiteElo "2470"]
[BlackElo "2095"]
[Result "0-1"]
[Round "07"]
[TimeControl "180+2"]
[Date "2023.03.28"]
[WhiteClock "0:01:39"]
[BlackClock "0:02:40"]

1. d4 {[%clk 0:03:00]}  Nf6 {[%clk 0:02:59]} 2. c4 {[%clk 0:03:01]}  c5 {[%clk 0:02:59]} 3. d5 {[%clk 0:03:00]}  e5 {[%clk 0:02:59]} 4. Nc3 {[%clk 0:03:00]}  d6 {[%clk 0:02:59]} 5. g3 {[%clk 0:02:59]}  Be7 {[%clk 0:03:00]} 6. Bg2 {[%clk 0:02:59]}  O-O {[%clk 0:03:00]} 7. Nf3 {[%clk 0:02:59]}  g6 {[%clk 0:02:57]} 8. h3 {[%clk 0:02:50]}  Ne8 {[%clk 0:02:57]} 9. g4 {[%clk 0:02:50]}  Ng7 {[%clk 0:02:57]} 10. Bh6 {[%clk 0:02:45]}  f5 {[%clk 0:02:57]} 11. g5 {[%clk 0:02:27]}  e4 {[%clk 0:02:50]} 12. Nh2 {[%clk 0:02:01]}  Bxg5 {[%clk 0:02:49]} 13. Bxg7 {[%clk 0:02:02]}  Kxg7 {[%clk 0:02:49]} 14. e3 {[%clk 0:02:03]}  Bf6 {[%clk 0:02:49]} 15. Qc2 {[%clk 0:02:00]}  Nd7 {[%clk 0:02:48]} 16. O-O-O {[%clk 0:01:59]}  Ne5 {[%clk 0:02:49]} 17. Kb1 {[%clk 0:01:59]}  a6 {[%clk 0:02:49]} 18. f3 {[%clk 0:01:57]}  Nxc4 {[%clk 0:02:47]} 19. fxe4 {[%clk 0:01:55]}  Nxe3 {[%clk 0:02:42]} 20. Qd3 {[%clk 0:01:54]}  Nxd1 {[%clk 0:02:42]} 21. Rxd1 {[%clk 0:01:55]}  b5 {[%clk 0:02:42]} 22. exf5 {[%clk 0:01:48]}  Bxf5 {[%clk 0:02:41]} 23. Be4 {[%clk 0:01:49]}  Bxc3 {[%clk 0:02:42]} 24. Bxf5 {[%clk 0:01:47]}  Rxf5 {[%clk 0:02:41]} 25. Qxc3+ {[%clk 0:01:43]}  Qf6 {[%clk 0:02:42]} 26. Qa5 {[%clk 0:01:41]}  Rf2 {[%clk 0:02:41]} 27. Ng4 {[%clk 0:01:39]}  Qxb2# {[%clk 0:02:40]} 0-1


[Site "https://www.chess.com"]

[Event "Titled Tuesday Blitz March 28 Early 2023"]
[White "Kosakowski, Jakub"]
[Black "Jumanov, Elbek"]
[WhiteFideId "1185080"]
[BlackFideId "14202905"]
[WhiteElo "2488"]
[BlackElo "2055"]
[Result "1-0"]
[Round "07"]
[TimeControl "180+2"]
[Date "2023.03.28"]
[WhiteClock "0:00:22"]
[BlackClock "0:00:11"]

1. d4 {[%clk 0:03:00]}  Nf6 {[%clk 0:02:56]} 2. Nf3 {[%clk 0:03:00]}  g6 {[%clk 0:02:56]} 3. Nbd2 {[%clk 0:02:56]}  d5 {[%clk 0:02:54]} 4. b4 {[%clk 0:02:56]}  a5 {[%clk 0:02:50]} 5. b5 {[%clk 0:02:55]}  c5 {[%clk 0:02:45]} 6. bxc6 {[%clk 0:02:54]}  bxc6 {[%clk 0:02:40]} 7. e3 {[%clk 0:02:55]}  Bg7 {[%clk 0:02:38]} 8. Be2 {[%clk 0:02:53]}  O-O {[%clk 0:02:37]} 9. O-O {[%clk 0:02:54]}  c5 {[%clk 0:02:38]} 10. c4 {[%clk 0:02:48]}  Ba6 {[%clk 0:02:32]} 11. Bb2 {[%clk 0:02:47]}  Nbd7 {[%clk 0:02:23]} 12. cxd5 {[%clk 0:02:39]}  Bxe2 {[%clk 0:02:20]} 13. Qxe2 {[%clk 0:02:40]}  Nxd5 {[%clk 0:02:20]} 14. Rfc1 {[%clk 0:02:41]}  cxd4 {[%clk 0:02:14]} 15. Bxd4 {[%clk 0:02:38]}  N7f6 {[%clk 0:02:04]} 16. Nc4 {[%clk 0:02:36]}  Ne4 {[%clk 0:01:21]} 17. Bxg7 {[%clk 0:02:27]}  Kxg7 {[%clk 0:01:21]} 18. Nd4 {[%clk 0:02:27]}  Qd7 {[%clk 0:01:10]} 19. Qf3 {[%clk 0:02:16]}  Nef6 {[%clk 0:01:02]} 20. Ne5 {[%clk 0:01:59]}  Qa4 {[%clk 0:00:56]} 21. Rc4 {[%clk 0:01:54]}  Qa3 {[%clk 0:00:55]} 22. Rac1 {[%clk 0:01:46]}  Qxa2 {[%clk 0:00:55]} 23. e4 {[%clk 0:01:44]}  Nb4 {[%clk 0:00:49]} 24. Rc7 {[%clk 0:01:36]}  Rad8 {[%clk 0:00:48]} 25. Qe3 {[%clk 0:01:30]}  Qb2 {[%clk 0:00:44]} 26. Ndf3 {[%clk 0:00:43]}  Rfe8 {[%clk 0:00:37]} 27. h3 {[%clk 0:00:43]}  a4 {[%clk 0:00:33]} 28. Ra7 {[%clk 0:00:41]}  Nc2 {[%clk 0:00:29]} 29. Qf4 {[%clk 0:00:39]}  a3 {[%clk 0:00:28]} 30. Ng5 {[%clk 0:00:33]}  a2 {[%clk 0:00:27]} 31. Nexf7 {[%clk 0:00:29]}  a1=Q {[%clk 0:00:24]} 32. Rcxa1 {[%clk 0:00:28]}  Nxa1 {[%clk 0:00:24]} 33. Nxd8 {[%clk 0:00:27]}  Qb1+ {[%clk 0:00:14]} 34. Kh2 {[%clk 0:00:27]}  Nc2 {[%clk 0:00:13]} 35. Nde6+ {[%clk 0:00:27]}  Kg8 {[%clk 0:00:13]} 36. Qxf6 {[%clk 0:00:22]}  Qb8+ {[%clk 0:00:11]} 37. g3 {[%clk 0:00:22]} 1-0


[Site "https://www.chess.com"]

[Event "Titled Tuesday Blitz March 28 Early 2023"]
[White "Rom, Jasper"]
[Black "Zemlyanskii, Ivan"]
[WhiteFideId "2023733"]
[BlackFideId "24249971"]
[WhiteElo "2233"]
[BlackElo "2233"]
[Result "0-1"]
[Round "07"]
[TimeControl "180+2"]
[Date "2023.03.28"]
[WhiteClock "0:00:07"]
[BlackClock "0:00:54"]

1. e4 {[%clk 0:02:55]}  Nc6 {[%clk 0:03:00]} 2. Nf3 {[%clk 0:02:54]}  d5 {[%clk 0:03:01]} 3. exd5 {[%clk 0:02:53]}  Qxd5 {[%clk 0:03:02]} 4. Nc3 {[%clk 0:02:52]}  Qd6 {[%clk 0:02:59]} 5. d4 {[%clk 0:02:42]}  Nf6 {[%clk 0:02:59]} 6. Nb5 {[%clk 0:02:41]}  Qd8 {[%clk 0:02:57]} 7. Bf4 {[%clk 0:02:41]}  Nd5 {[%clk 0:02:56]} 8. Bg3 {[%clk 0:02:38]}  a6 {[%clk 0:02:50]} 9. Nc3 {[%clk 0:02:37]}  Bg4 {[%clk 0:02:46]} 10. Be2 {[%clk 0:02:37]}  e6 {[%clk 0:02:44]} 11. O-O {[%clk 0:02:35]}  Nxc3 {[%clk 0:02:33]} 12. bxc3 {[%clk 0:02:34]}  Bd6 {[%clk 0:02:34]} 13. Rb1 {[%clk 0:02:29]}  Rb8 {[%clk 0:02:26]} 14. Re1 {[%clk 0:02:15]}  O-O {[%clk 0:02:26]} 15. Bd3 {[%clk 0:02:12]}  h6 {[%clk 0:02:18]} 16. Qd2 {[%clk 0:02:09]}  Bxf3 {[%clk 0:02:10]} 17. gxf3 {[%clk 0:02:10]}  Ne7 {[%clk 0:02:08]} 18. Kh1 {[%clk 0:01:58]}  Bxg3 {[%clk 0:01:27]} 19. hxg3 {[%clk 0:01:58]}  b6 {[%clk 0:01:27]} 20. Kg2 {[%clk 0:01:51]}  a5 {[%clk 0:01:22]} 21. Qf4 {[%clk 0:01:41]}  Nd5 {[%clk 0:01:21]} 22. Qe4 {[%clk 0:01:41]}  g6 {[%clk 0:01:18]} 23. Qg4 {[%clk 0:01:20]}  Qf6 {[%clk 0:01:15]} 24. c4 {[%clk 0:01:15]}  h5 {[%clk 0:01:12]} 25. Qh3 {[%clk 0:00:32]}  Nb4 {[%clk 0:01:12]} 26. Re5 {[%clk 0:00:20]}  Rbd8 {[%clk 0:01:01]} 27. Rxh5 {[%clk 0:00:12]}  gxh5 {[%clk 0:00:58]} 28. Qxh5 {[%clk 0:00:12]}  Nxd3 {[%clk 0:00:58]} 29. cxd3 {[%clk 0:00:12]}  Kg7 {[%clk 0:00:53]} 30. Ra1 {[%clk 0:00:11]}  Rh8 {[%clk 0:00:53]} 31. Qg4+ {[%clk 0:00:11]}  Kf8 {[%clk 0:00:53]} 32. d5 {[%clk 0:00:07]}  Qxa1 {[%clk 0:00:54]} 0-1


[Site "https://www.chess.com"]

[Event "Titled Tuesday Blitz March 28 Early 2023"]
[White "Lukas2010"]
[Black "Seo, Jung Min"]
[BlackFideId "1734687"]
[WhiteElo "2499"]
[BlackElo "2468"]
[Result "1-0"]
[Round "07"]
[TimeControl "180+2"]
[Date "2023.03.28"]
[WhiteClock "0:00:05"]
[BlackClock "0:00:41"]

1. e4 {[%clk 0:03:00]}  c5 {[%clk 0:03:00]} 2. Nf3 {[%clk 0:03:00]}  Nc6 {[%clk 0:03:00]} 3. d4 {[%clk 0:02:59]}  cxd4 {[%clk 0:03:00]} 4. Nxd4 {[%clk 0:03:00]}  e6 {[%clk 0:03:01]} 5. Nc3 {[%clk 0:02:59]}  Qc7 {[%clk 0:03:01]} 6. g3 {[%clk 0:02:59]}  a6 {[%clk 0:02:57]} 7. Bg2 {[%clk 0:02:59]}  Nf6 {[%clk 0:02:58]} 8. O-O {[%clk 0:02:59]}  Nxd4 {[%clk 0:02:58]} 9. Qxd4 {[%clk 0:03:00]}  Bc5 {[%clk 0:02:59]} 10. Bf4 {[%clk 0:03:00]}  d6 {[%clk 0:02:59]} 11. Qd2 {[%clk 0:03:00]}  h6 {[%clk 0:02:59]} 12. Rad1 {[%clk 0:02:58]}  e5 {[%clk 0:02:59]} 13. Be3 {[%clk 0:02:58]}  Bxe3 {[%clk 0:02:54]} 14. fxe3 {[%clk 0:02:44]}  Be6 {[%clk 0:02:54]} 15. Qxd6 {[%clk 0:02:39]}  Rc8 {[%clk 0:02:53]} 16. Qxc7 {[%clk 0:02:21]}  Rxc7 {[%clk 0:02:53]} 17. Rd2 {[%clk 0:02:18]}  Rxc3 {[%clk 0:02:33]} 18. bxc3 {[%clk 0:02:17]}  Ke7 {[%clk 0:02:33]} 19. Rb1 {[%clk 0:02:14]}  Rb8 {[%clk 0:02:17]} 20. a4 {[%clk 0:02:05]}  a5 {[%clk 0:02:15]} 21. Rb5 {[%clk 0:01:55]}  b6 {[%clk 0:02:14]} 22. Rxe5 {[%clk 0:01:53]}  Ng4 {[%clk 0:02:14]} 23. Rb5 {[%clk 0:01:48]}  Nxe3 {[%clk 0:02:14]} 24. e5 {[%clk 0:01:38]}  Nc4 {[%clk 0:02:14]} 25. Rd4 {[%clk 0:01:36]}  Na3 {[%clk 0:02:12]} 26. Rb2 {[%clk 0:01:34]}  Nc4 {[%clk 0:02:12]} 27. Rb1 {[%clk 0:01:20]}  Nxe5 {[%clk 0:02:12]} 28. Bd5 {[%clk 0:01:06]}  Bd7 {[%clk 0:02:09]} 29. Kf2 {[%clk 0:01:00]}  f6 {[%clk 0:02:04]} 30. c4 {[%clk 0:00:58]}  Kd6 {[%clk 0:01:59]} 31. Bg2+ {[%clk 0:00:36]}  Kc7 {[%clk 0:01:59]} 32. c5 {[%clk 0:00:30]}  bxc5 {[%clk 0:01:59]} 33. Rxb8 {[%clk 0:00:31]}  cxd4 {[%clk 0:01:59]} 34. Rg8 {[%clk 0:00:29]}  g5 {[%clk 0:01:45]} 35. Ra8 {[%clk 0:00:29]}  Kb6 {[%clk 0:01:40]} 36. h3 {[%clk 0:00:13]}  Bxa4 {[%clk 0:01:39]} 37. Rh8 {[%clk 0:00:13]}  Bxc2 {[%clk 0:01:34]} 38. Rxh6 {[%clk 0:00:13]}  a4 {[%clk 0:01:32]} 39. Rxf6+ {[%clk 0:00:13]}  Ka5 {[%clk 0:01:32]} 40. Re6 {[%clk 0:00:12]}  Nd3+ {[%clk 0:01:31]} 41. Ke2 {[%clk 0:00:12]}  a3 {[%clk 0:01:27]} 42. Bd5 {[%clk 0:00:12]}  Nb4 {[%clk 0:01:11]} 43. Bc4 {[%clk 0:00:10]}  a2 {[%clk 0:01:08]} 44. Re8 {[%clk 0:00:08]}  Be4 {[%clk 0:00:52]} 45. Bxa2 {[%clk 0:00:05]}  Bg2 {[%clk 0:00:46]} 46. Re5+ {[%clk 0:00:05]}  Ka4 {[%clk 0:00:44]} 47. Be6 {[%clk 0:00:05]}  Nc6 {[%clk 0:00:41]} 48. Bd7 {[%clk 0:00:05]} 1-0


[Site "https://www.chess.com"]